bitfinex/quotes_ETHUSD_20241009
["timestamp","ask_amount","ask_price","bid_price","bid_amount"]
[1728485497285,0.02268026,2435.4,2435.3,14.92999952]
[1728485497599,0.02268026,2435.4,2435.3,10.82372952]
[1728485497769,0.02268026,2435.4,2435.3,9.3507067]
[1728485498106,4.12878026,2435.4,2435.3,5.004]
[1728485498391,4.88268026,2435.4,2435.3,5.004]
[1728485498802,0.78058026,2435.4,2435.3,5.004]
[1728485499093,4.90667888,2435.4,2435.3,5.004]
[1728485499295,0.03467888,2435.4,2435.3,5.004]
[1728485499503,0.02667888,2435.4,2435.3,5.554]
[1728485499655,0.02268026,2435.4,2435.3,5.8606046]
[1728485500401,0.02268026,2435.4,2435.3,5.554]
[1728485500757,4.12878026,2435.4,2435.3,5.554]
[1728485501188,0.02268026,2435.4,2435.3,5.554]
[1728485502059,0.02268026,2435.4,2435.3,8.554]
[1728485502361,0.02268026,2435.4,2435.3,14.89483132]
[1728485502584,0.02268026,2435.4,2435.3,16.6112194]
[1728485502785,0.02268026,2435.4,2435.3,14.89483132]
[1728485503105,0.02268026,2435.4,2435.3,16.9818194]
[1728485503399,0.02268026,2435.4,2435.3,16.9817762]
[1728485503602,0.02268026,2435.4,2435.3,17.4721515]
[1728485503904,0.02268026,2435.4,2435.3,17.90121053]
[1728485504086,0.02268026,2435.4,2435.3,15.75580662]
[1728485504292,0.02268026,2435.4,2435.3,17.90078606]
[1728485504471,0.02268026,2435.4,2435.3,15.75580662]
[1728485504670,0.02268026,2435.4,2435.3,33.39767162]
[1728485505011,0.02268026,2435.4,2435.3,68.39767162]
[1728485505299,0.02268026,2435.4,2435.3,66.82549862]
[1728485507181,0.02268026,2435.4,2435.3,69.60038239]
[1728485507713,0.02268026,2435.4,2435.3,68.2288817]
[1728485507916,0.02268026,2435.4,2435.3,68.53533867]
[1728485508212,0.02268026,2435.4,2435.3,68.24221184]
[1728485511325,0.02268026,2435.4,2435.3,67.44542371]
[1728485511529,0.02268026,2435.4,2435.3,68.24201546]
[1728485513127,0.02268026,2435.4,2435.3,64.13291038]
[1728485513443,0.02268026,2435.4,2435.3,63.66730838]
[1728485514212,0.02268026,2435.4,2435.3,66.23972344]
[1728485514899,0.02268026,2435.4,2435.3,65.44313169]
[1728485515097,0.02268026,2435.4,2435.3,65.93310808]
[1728485515335,0.02268026,2435.4,2435.3,66.23934332]
[1728485517918,0.02268026,2435.4,2435.3,66.2392577]
[1728485518264,0.02268026,2435.4,2435.3,66.23933312]
[1728485518820,0.02268026,2435.4,2435.3,65.44320711]
[1728485519050,0.02268026,2435.4,2435.3,65.74944456]
[1728485519359,0.02268026,2435.4,2435.3,66.23933942]
[1728485521361,0.02268026,2435.4,2435.3,15.405905]
[1728485521519,0.02268026,2435.4,2435.3,7.02535542]
[1728485521719,0.02268026,2435.4,2435.3,5.004]
[1728485522129,4.12878026,2435.4,2435.3,5.004]
[1728485522363,4.95388026,2435.4,2435.3,5.004]
[1728485525166,0.84778026,2435.4,2435.3,5.554]
[1728485526376,4.95388026,2435.4,2435.3,5.554]
[1728485527422,4.95388026,2435.4,2435.3,5.004]
[1728485527581,4.95388026,2435.4,2435.3,0.004]
[1728485527582,5.05101196,2435.4,2435.3,0.004]
[1728485527907,6.36188517,2435.4,2435.3,0.004]
[1728485528121,4.10745,2434.6,2434.5,5.30691931]
[1728485528259,4.10778,2434.4,2434.3,0.30691931]
[1728485528464,4.10718,2434.8,2434.2,5.0]
[1728485528666,4.89718,2434.6,2434.2,5.0]
[1728485528920,4.10779,2434.4,2434.2,5.0]
[1728485529205,4.89718,2434.6,2434.2,5.0]
[1728485530195,4.89718,2434.6,2434.3,0.55]
[1728485530474,4.10771,2434.5,2434.3,0.55]
[1728485530809,4.10778,2434.4,2434.3,0.55]
[1728485531381,4.93748,2434.4,2434.3,0.55]
[1728485531580,4.10795,2434.3,2434.2,5.0]
[1728485531783,4.93765,2434.3,2434.2,5.0]
[1728485532217,5.0267817,2434.3,2434.2,5.0]
[1728485532677,4.10846,2434.0,2433.9,5.0]
[1728485532919,4.93816,2434.0,2433.9,5.554]
[1728485533106,4.93816,2434.0,2433.9,5.004]
[1728485533305,5.842805,2434.0,2433.9,5.004]
[1728485533505,0.8297,2434.0,2433.9,5.004]
[1728485533702,0.79309862,2434.2,2433.9,5.004]
[1728485533905,0.80509862,2434.2,2433.9,5.004]
[1728485534106,0.81309862,2434.2,2433.9,5.004]
[1728485534346,0.81309862,2434.2,2434.0,0.55]
[1728485534609,0.81309862,2434.2,2434.1,0.004]
[1728485534824,4.92121862,2434.2,2434.1,0.004]
[1728485535326,5.82414548,2434.2,2434.1,0.004]
[1728485535955,5.91327718,2434.2,2434.1,0.004]
[1728485536825,5.82414548,2434.2,2434.1,0.004]
[1728485539261,5.91327718,2434.2,2434.1,0.004]
[1728485539866,5.90967718,2434.2,2434.1,0.004]
[1728485542369,5.82054548,2434.2,2434.1,0.004]
[1728485542552,4.91761862,2434.2,2434.1,0.004]
[1728485543771,0.02399862,2434.2,2434.1,0.004]
[1728485544083,0.01599862,2434.2,2434.1,0.004]
[1728485544262,0.00799862,2434.2,2434.1,0.63615498]
[1728485544437,4.10779,2434.4,2434.3,5.0]
[1728485544637,4.10812,2434.2,2434.1,0.554]
[1728485545123,4.10812,2434.2,2433.9,5.0]
[1728485545124,4.10846,2434.0,2433.9,5.0]
[1728485545239,4.10829,2434.1,2433.9,5.0]
[1728485545673,8.21671,2434.1,2433.9,5.0]
[1728485545973,4.10846,2434.0,2433.9,5.55]
[1728485546355,4.10829,2434.1,2433.9,5.554]
[1728485547359,4.11628862,2434.1,2433.9,5.554]
[1728485547565,8.23267862,2434.1,2433.9,5.554]
[1728485547806,8.24467862,2434.1,2433.9,5.554]
[1728485547948,8.24868862,2434.1,2433.9,5.554]
[1728485548876,4.10846,2434.0,2433.9,5.554]
[1728485550162,4.10846,2434.0,2433.9,5.004]
[1728485550163,5.008925,2434.0,2433.9,5.004]
[1728485550374,4.10846,2434.0,2433.9,5.004]
[1728485554888,0.01999862,2434.1,2434.0,4.65846]
[1728485555092,0.012,2434.1,2434.0,4.71431376]
[1728485555256,0.03199862,2434.3,2434.2,5.0]
[1728485555582,0.03199862,2434.3,2434.2,5.554]
[1728485556376,0.03199862,2434.3,2434.2,5.60736147]
[1728485556588,0.03199862,2434.3,2434.2,9.71548147]
[1728485556760,0.03199862,2434.3,2434.2,9.66212]
[1728485557091,0.03199862,2434.3,2434.2,7.41097358]
[1728485557263,0.03199862,2434.3,2434.2,11.51909358]
[1728485557655,0.03199862,2434.3,2434.2,11.89369358]
[1728485557850,0.02399862,2434.3,2434.2,11.89369358]
[1728485558161,0.00399862,2434.3,2434.2,11.89369358]
[1728485558362,0.84,2434.7,2434.6,5.55]
[1728485558591,4.95928,2434.7,2434.6,5.55]
[1728485558795,4.96728,2434.7,2434.6,5.554]
[1728485558952,4.97127862,2434.7,2434.6,5.554]
[1728485559170,5.96826118,2434.7,2434.6,5.004]
[1728485562013,5.06041032,2434.7,2434.6,5.004]
[1728485562224,5.06041032,2434.7,2434.6,0.004]
[1728485562517,5.00821032,2434.7,2434.6,0.004]
[1728485571218,4.10778,2434.4,2434.3,5.55]
[1728485571879,4.1076,2434.6,2434.3,5.55]
[1728485572079,4.10764,2434.5,2434.3,5.55]
[1728485573504,4.10778,2434.4,2434.3,5.55]
[1728485573722,4.10764,2434.5,2434.3,5.554]
[1728485574106,8.21542,2434.5,2434.3,5.554]
[1728485574312,4.10764,2434.5,2434.3,5.554]
[1728485575515,4.91920862,2434.7,2434.4,0.55]
[1728485575701,4.10745,2434.6,2434.4,0.55]
[1728485575905,0.008,2434.5,2434.4,0.55]
[1728485576181,0.02799862,2434.5,2434.4,0.55]
[1728485576386,4.13960862,2434.5,2434.4,0.93443973]
[1728485576710,4.13960862,2434.5,2434.4,0.93843973]
[1728485577391,0.03199862,2434.5,2434.4,0.93843973]
[1728485577596,0.03199862,2434.5,2434.4,0.93842682]
[1728485578013,4.13960862,2434.5,2434.4,0.93842682]
[1728485578324,0.02,2434.5,2434.4,0.93842682]
[1728485578482,0.008,2434.5,2434.4,0.93842682]
[1728485578683,4.11535862,2434.7,2434.4,2.1145903]
[1728485578883,4.12335862,2434.7,2434.5,0.75902682]
[1728485579125,4.13135862,2434.7,2434.5,0.3746]
[1728485579299,4.10745,2434.6,2434.5,0.55]
[1728485579498,4.10745,2434.6,2434.5,0.93446046]
[1728485580700,5.59666583,2434.6,2434.4,0.004]
[1728485580887,4.10761,2434.5,2434.4,0.004]
[1728485581086,4.1967417,2434.5,2434.4,0.38853518]
[1728485581488,4.1967417,2434.5,2434.4,0.004]
[1728485581715,5.58110515,2434.5,2434.4,0.004]
[1728485582027,4.1967417,2434.5,2434.4,0.004]
[1728485582359,4.10761,2434.5,2434.4,0.004]
[1728485582567,4.13538862,2434.7,2434.4,0.554]
[1728485582715,4.12339,2434.7,2434.4,0.554]
[1728485582921,4.11139,2434.7,2434.4,0.554]
[1728485583121,4.11539,2434.7,2434.4,0.554]
[1728485583368,4.12738862,2434.7,2434.4,0.554]
[1728485583665,4.13938862,2434.7,2434.4,0.554]
[1728485583861,0.03199862,2434.7,2434.6,5.55]
[1728485584170,0.012,2434.7,2434.6,8.55]
[1728485584458,0.004,2434.7,2434.6,8.55]
[1728485585054,0.004,2434.7,2434.6,12.65745]
[1728485585268,0.004,2434.7,2434.6,14.86755208]
[1728485585464,0.02,2434.8,2434.7,7.65728]
[1728485585670,0.008,2434.8,2434.7,7.65728]
[1728485585827,0.004,2434.9,2434.7,7.65728]
[1728485586027,4.10662,2435.1,2435.0,5.0]
[1728485586270,4.10662,2435.1,2435.0,5.55]
[1728485586568,4.10662,2435.1,2435.0,5.554]
[1728485587134,0.03199862,2435.2,2435.1,0.55]
[1728485587321,0.03199862,2435.2,2435.1,1.608543]
[1728485587322,0.028,2435.2,2435.1,1.608543]
[1728485587523,0.028,2435.2,2435.1,5.715143]
[1728485587524,0.016,2435.2,2435.1,5.715143]
[1728485587833,0.05467888,2435.4,2435.3,5.55]
[1728485588036,0.05467888,2435.4,2435.3,5.554]
[1728485588353,4.16077888,2435.4,2435.3,5.554]
[1728485588728,4.24991058,2435.4,2435.3,5.004]
[1728485588927,4.24991058,2435.4,2435.3,0.004]
[1728485588928,5.16395064,2435.4,2435.3,0.004]
[1728485589166,5.94395064,2435.4,2435.3,0.004]
[1728485590903,4.94077888,2435.4,2435.3,0.004]
[1728485592443,5.02991058,2435.4,2435.3,0.004]
[1728485595392,8.82169456,2435.4,2435.3,0.004]
[1728485595592,8.73256286,2435.4,2435.3,0.004]
[1728485601374,11.73256286,2435.4,2435.3,0.004]
[1728485601574,13.31642815,2435.4,2435.3,0.004]
[1728485607825,4.94077888,2435.4,2435.3,0.004]
[1728485608028,4.24991058,2435.4,2435.3,0.004]
[1728485608904,4.16077888,2435.4,2435.3,0.004]
[1728485609998,4.24991058,2435.4,2435.3,0.004]
[1728485610203,4.16077888,2435.4,2435.3,0.004]
[1728485610442,4.24991058,2435.4,2435.3,0.004]
[1728485611088,5.16618064,2435.4,2435.3,0.004]
[1728485611600,9.62443292,2435.4,2435.3,0.004]
[1728485622071,5.83264894,2435.4,2435.3,0.004]
[1728485622234,5.92178064,2435.4,2435.3,0.004]
[1728485628345,9.71356462,2435.4,2435.3,0.004]
[1728485628559,9.62443292,2435.4,2435.3,0.004]
[1728485633364,12.62443292,2435.4,2435.3,0.004]
[1728485641896,4.16077888,2435.4,2435.3,0.004]
[1728485642051,4.24991058,2435.4,2435.3,0.004]
[1728485645558,4.16077888,2435.4,2435.3,0.004]
[1728485645787,4.16077888,2435.4,2435.3,0.3786]
[1728485647157,4.24991058,2435.4,2435.3,0.3786]
[1728485647392,4.16077888,2435.4,2435.3,0.3786]
[1728485647555,4.24991058,2435.4,2435.3,0.3786]
[1728485647755,4.16077888,2435.4,2435.3,0.3786]
[1728485648908,8.04169456,2435.4,2435.3,0.004]
[1728485649205,10.05477302,2435.4,2435.3,0.004]
[1728485649406,9.96564132,2435.4,2435.3,0.004]
[1728485650807,4.16077888,2435.4,2435.3,0.004]
[1728485651004,4.24991058,2435.4,2435.3,0.004]
[1728485652307,8.04169456,2435.4,2435.3,0.004]
[1728485652477,8.85099456,2435.4,2435.3,0.004]
[1728485652685,8.76186286,2435.4,2435.3,0.004]
[1728485652876,10.04865815,2435.4,2435.3,0.004]
[1728485653816,5.44757417,2435.4,2435.3,0.004]
[1728485653970,5.53670587,2435.4,2435.3,0.004]
[1728485654307,9.32848985,2435.4,2435.3,0.004]
[1728485654606,9.23935815,2435.4,2435.3,0.004]
[1728485655575,7.95256286,2435.4,2435.3,0.004]
[1728485655773,8.04169456,2435.4,2435.3,0.004]
[1728485656481,4.24991058,2435.4,2435.3,0.004]
[1728485659301,4.24991058,2435.4,2435.3,0.3786]
[1728485659528,4.16077888,2435.4,2435.3,0.3786]
[1728485660702,4.16077888,2435.4,2435.3,5.9286]
[1728485661051,0.05467888,2435.4,2435.3,6.52146]
[1728485661352,0.04667888,2435.4,2435.3,6.52146]
[1728485661644,0.03067888,2435.4,2435.3,6.52146]
[1728485661809,0.02268026,2435.4,2435.3,6.52146]
[1728485663335,0.02268026,2435.4,2435.3,15.65002781]
[1728485663536,0.02268026,2435.4,2435.3,16.58028116]
[1728485664072,0.02268026,2435.4,2435.3,14.42657792]
[1728485664220,0.02268026,2435.4,2435.3,16.57515447]
[1728485664631,0.02268026,2435.4,2435.3,16.14549626]
[1728485664842,0.02268026,2435.4,2435.3,15.65382818]
[1728485665234,0.02268026,2435.4,2435.3,9.82863984]
[1728485665515,0.02268026,2435.4,2435.3,9.52146]
[1728485667331,0.02268026,2435.4,2435.3,13.62773]
[1728485670744,0.02268026,2435.4,2435.3,9.52146]
[1728485671571,0.02268026,2435.4,2435.3,9.52146]
[1728485671963,0.02268026,2435.4,2435.3,5.9286]
[1728485675996,4.12878026,2435.4,2435.3,5.9286]
[1728485677151,0.02268026,2435.4,2435.3,5.9286]
[1728485678699,4.12878026,2435.4,2435.3,5.9286]
[1728485678851,0.02268026,2435.4,2435.3,5.9286]
[1728485684197,0.02268026,2435.4,2435.3,6.932113]
[1728485684524,0.02268026,2435.4,2435.3,11.038383]
[1728485685591,0.02268026,2435.4,2435.3,14.038383]
[1728485686825,0.02268026,2435.4,2435.3,14.34532902]
[1728485686986,0.02268026,2435.4,2435.3,16.06424736]
[1728485689451,0.02268026,2435.4,2435.3,16.27130792]
[1728485690259,0.02268026,2435.4,2435.3,16.06424736]
[1728485695617,0.02268026,2435.4,2435.3,14.038383]
[1728485695822,0.02268026,2435.4,2435.3,16.06407204]
[1728485700248,0.004,2436.2,2436.1,7.10492]
[1728485700471,0.004,2436.5,2436.3,9.10458]
[1728485700676,0.004,2436.5,2436.4,4.210458]
[1728485702169,0.004,2436.5,2436.4,4.760458]
[1728485702369,4.89431,2436.4,2436.3,5.0]
[1728485702584,4.89830862,2436.4,2436.3,5.004]
[1728485702788,0.80189862,2436.4,2436.3,5.004]
[1728485702952,4.91830862,2436.4,2436.3,5.004]
[1728485703152,0.8139,2436.4,2436.3,5.004]
[1728485703465,0.7979,2436.4,2436.3,5.004]
[1728485703677,0.7899,2436.4,2436.3,5.004]
[1728485703875,0.7899,2436.4,2436.3,5.554]
[1728485704764,0.004,2436.5,2436.4,0.55]
[1728485705362,0.004,2436.5,2436.4,4.515875]
[1728485705560,0.02399862,2436.6,2436.4,4.515875]
[1728485705763,0.012,2436.6,2436.4,4.515875]
[1728485705974,4.10818,2436.6,2436.4,3.55]
[1728485706182,4.10424,2436.5,2436.4,0.55]
[1728485706571,5.0115717,2436.5,2436.4,0.55]
[1728485707394,4.92244,2436.5,2436.4,0.55]
[1728485708200,4.10411,2436.6,2436.4,0.55]
[1728485708488,4.2052417,2436.6,2436.4,0.55]
[1728485708686,4.2172417,2436.6,2436.4,0.55]
[1728485708896,4.22524032,2436.6,2436.4,0.55]
[1728485709099,0.03199862,2436.6,2436.4,1.515473]
[1728485709255,0.03199862,2436.6,2436.5,0.004]
[1728485709457,0.01999862,2436.6,2436.5,0.004]
[1728485709802,0.004,2436.6,2436.5,0.004]
[1728485710087,0.01999862,2436.7,2436.6,5.55]
[1728485710286,0.008,2436.7,2436.6,5.55]
[1728485710493,4.13576862,2436.8,2436.6,5.55]
[1728485711965,4.1930417,2436.7,2436.6,5.55]
[1728485712385,8.32877032,2436.8,2436.6,5.55]
[1728485712698,8.23963862,2436.8,2436.6,5.55]
[1728485712864,4.1930417,2436.7,2436.6,5.0]
[1728485714401,4.10407,2436.6,2436.5,0.004]
[1728485714568,4.1932017,2436.6,2436.5,0.004]
[1728485717002,4.89191,2436.7,2436.5,0.004]
[1728485717217,0.03199862,2436.8,2436.6,4.97914178]
[1728485717218,4.22488032,2436.8,2436.6,4.97914178]
[1728485717395,4.10391,2436.7,2436.6,4.97914178]
[1728485718077,4.13574862,2436.8,2436.6,4.97914178]
[1728485718078,4.13576862,2436.8,2436.6,4.97914178]
[1728485719613,0.03199862,2436.8,2436.6,4.97914178]
[1728485720077,4.13574862,2436.8,2436.6,4.97914178]
[1728485720283,0.03199862,2436.8,2436.6,4.97914178]
[1728485720480,4.13575862,2436.8,2436.6,4.97914178]
[1728485720679,0.03199862,2436.8,2436.7,4.65391]
[1728485720982,0.01599862,2436.8,2436.7,8.11057821]
[1728485721182,0.004,2436.8,2436.7,8.11057821]
[1728485721371,4.13092862,2437.3,2437.2,5.52914178]
[1728485721572,4.12292862,2437.3,2437.2,5.53314178]
[1728485722372,0.01999862,2437.3,2437.2,5.53314178]
[1728485723301,4.12289862,2437.3,2437.2,5.53314178]
[1728485723500,4.21203032,2437.3,2437.2,4.98314178]
[1728485725412,5.12029935,2437.3,2437.2,4.98314178]
[1728485725577,5.89739935,2437.3,2437.2,4.98314178]
[1728485725977,5.89739935,2437.3,2437.2,0.004]
[1728485726783,8.89739935,2437.3,2437.2,0.004]
[1728485727012,8.80826765,2437.3,2437.2,0.004]
[1728485730920,5.80826765,2437.3,2437.2,0.004]
[1728485731119,5.89739935,2437.3,2437.2,0.004]
[1728485732408,8.89739935,2437.3,2437.2,0.004]
[1728485732713,8.80826765,2437.3,2437.2,0.004]
[1728485733325,4.10492,2436.1,2436.0,5.35374178]
[1728485734381,4.10465,2436.3,2436.0,5.35374178]
[1728485734577,4.10477,2436.2,2436.0,5.35374178]
[1728485734807,4.10465,2436.3,2436.1,0.55]
[1728485735188,4.10475,2436.2,2436.1,0.55]
[1728485735409,4.1938817,2436.2,2436.0,5.35374178]
[1728485735577,4.10492,2436.1,2436.0,5.90374178]
[1728485736446,4.10477,2436.2,2436.0,5.90374178]
[1728485736910,0.03199862,2436.3,2436.1,0.55]
[1728485737408,0.03199862,2436.3,2436.2,0.004]
[1728485739908,4.13657862,2436.3,2436.2,0.004]
[1728485740236,0.03199862,2436.3,2436.2,0.004]
[1728485741142,4.13657862,2436.3,2436.2,0.004]
[1728485741440,0.03199862,2436.3,2436.2,0.004]
[1728485744097,4.13657862,2436.3,2436.2,0.004]
[1728485744378,5.84342635,2436.3,2436.2,0.38785427]
[1728485744590,5.84342635,2436.3,2436.2,0.004]
[1728485745796,9.63521033,2436.3,2436.2,0.004]
[1728485745958,9.54607863,2436.3,2436.2,0.004]
[1728485746280,12.54607863,2436.3,2436.2,0.004]
[1728485747591,12.54607863,2436.3,2435.2,5.0]
[1728485747592,4.10627,2435.3,2435.2,5.0]
[1728485747746,4.9964017,2435.3,2435.2,5.0]
[1728485747945,5.0004017,2435.3,2435.2,5.0]
[1728485748146,5.0084017,2435.3,2435.2,5.0]
[1728485748447,5.02440032,2435.3,2435.2,5.0]
[1728485748651,5.02440032,2435.3,2434.8,5.0]
[1728485748652,4.10694,2434.9,2434.8,5.0]
[1728485748990,4.10694,2434.9,2434.5,0.44421642]
[1728485748991,4.10728,2434.8,2434.5,5.3826]
[1728485749195,4.1073,2434.7,2434.5,5.3826]
[1728485749377,4.10728,2434.8,2434.5,5.3826]
[1728485749561,4.2044317,2434.7,2434.5,5.0]
[1728485749749,4.21243032,2434.7,2434.5,5.0]
[1728485749944,4.21243032,2434.7,2434.6,0.55]
[1728485750193,4.22043032,2434.7,2434.5,5.0]
[1728485750350,4.10745,2434.6,2434.5,5.0]
[1728485750671,4.1965817,2434.6,2434.5,5.0]
[1728485751347,4.1965817,2434.6,2434.1,5.0]
[1728485751348,4.10797,2434.3,2434.1,5.0]
[1728485751549,4.1972517,2434.2,2434.1,5.0]
[1728485751793,4.1972517,2434.2,2433.7,0.3826]
[1728485751794,4.10858,2434.0,2433.7,5.0]
[1728485751992,0.0891317,2434.0,2433.7,5.0]
[1728485752166,0.004,2433.8,2433.7,5.0]
[1728485752349,0.012,2433.8,2433.7,5.0]
[1728485752556,0.02399862,2433.8,2433.7,5.0]
[1728485752786,0.02799862,2433.8,2433.7,5.0]
[1728485753099,0.01199862,2433.8,2433.7,8.55]
[1728485753402,0.01199862,2433.8,2433.7,8.004]
[1728485753403,0.004,2433.8,2433.7,8.004]
[1728485753613,0.8866317,2433.9,2433.7,8.004]
[1728485753888,0.03199862,2434.1,2434.0,5.0]
[1728485754192,0.03199862,2434.1,2434.0,5.004]
[1728485756378,0.03199862,2434.1,2434.0,0.004]
[1728485756379,4.14028862,2434.1,2434.0,0.004]
[1728485756588,4.22942032,2434.1,2434.0,0.004]
[1728485756794,5.14292535,2434.1,2434.0,0.004]
[1728485759610,9.75920933,2434.1,2434.0,0.004]
[1728485759811,9.67007763,2434.1,2434.0,0.004]
[1728485763582,12.67007763,2434.1,2434.0,0.004]
[1728485764131,12.67007763,2434.1,2432.5,4.11093]
[1728485764132,4.11029,2433.0,2432.6,0.3826]
[1728485764282,4.1995317,2432.9,2432.6,0.3826]
[1728485765184,4.23129032,2433.0,2432.6,0.3826]
[1728485765385,0.12113032,2433.0,2432.8,5.0]
[1728485766010,0.03199862,2433.0,2432.9,0.55]
[1728485766321,0.02,2433.0,2432.9,0.55]
[1728485766523,0.008,2433.0,2432.9,0.55]
[1728485766679,0.004,2433.0,2432.9,0.55]
[1728485767186,4.10999,2433.1,2432.9,0.55]
[1728485767389,4.1989617,2433.2,2432.9,0.554]
[1728485767610,4.1989617,2433.2,2433.1,0.004]
[1728485768389,4.10976,2433.3,2433.1,0.004]
[1728485768697,4.10981,2433.2,2433.1,0.004]
[1728485769034,4.1989417,2433.2,2433.1,0.004]
[1728485769953,4.20694032,2433.2,2433.1,0.004]
[1728485770129,4.21894032,2433.2,2433.1,0.004]
[1728485770283,4.23094032,2433.2,2433.1,0.004]
[1728485772985,5.14213035,2433.2,2433.1,0.004]
[1728485773189,8.93391433,2433.2,2433.1,0.004]
[1728485773491,12.64048263,2433.2,2433.1,0.004]
[1728485774333,4.11181,2432.1,2431.9,5.0]
[1728485774675,0.0891317,2432.0,2431.9,5.0]
[1728485775258,4.11168,2432.1,2431.9,5.0]
[1728485775463,0.0891317,2432.0,2431.9,5.0]
[1728485775783,4.2009717,2432.0,2431.9,5.0]
[1728485776338,4.2049717,2432.0,2431.9,5.0]
[1728485776656,4.2209717,2432.0,2431.9,5.0]
[1728485776840,5.44381389,2432.0,2431.9,5.0]
[1728485777235,6.19501389,2432.0,2431.5,5.3906]
[1728485777564,4.11226,2431.8,2431.5,5.0]
[1728485777750,0.0891317,2431.7,2431.5,5.0]
[1728485778931,0.008,2431.6,2431.5,8.0]
[1728485779133,2.78656162,2431.6,2431.5,5.0]
[1728485779333,0.02399862,2431.6,2431.5,5.0]
[1728485779537,0.01999862,2431.6,2431.5,10.04634]
[1728485779775,0.012,2431.6,2431.5,10.04634]
[1728485780455,0.004,2431.6,2431.5,13.59634]
[1728485780766,0.00799862,2431.8,2431.7,4.11234]
[1728485780945,0.02399862,2432.0,2431.8,9.66207]
[1728485781348,0.02399862,2432.0,2431.9,4.11201]
[1728485781552,0.02399862,2432.0,2431.9,5.05661]
[1728485781797,0.02,2432.0,2431.9,5.05661]
[1728485781949,0.016,2432.0,2431.9,6.9505628]
[1728485782291,0.012,2432.0,2431.9,6.9505628]
[1728485782505,0.004,2432.0,2431.9,6.9505628]
[1728485782692,0.02399862,2432.2,2432.0,0.55]
[1728485782864,0.016,2432.2,2432.1,0.004]
[1728485783079,0.012,2432.2,2432.1,0.004]
[1728485783415,0.004,2432.2,2432.1,12.66567]
[1728485783551,0.004,2432.2,2432.1,13.05627]
[1728485783964,0.00399862,2432.4,2432.3,4.11133]
[1728485784173,0.00399862,2432.4,2432.3,6.5592828]
[1728485784374,0.012,2432.5,2432.4,9.66116]
[1728485784899,0.01599862,2432.5,2432.4,9.66116]
[1728485785109,0.01599862,2432.5,2432.4,10.05176]
[1728485785311,0.01599862,2432.5,2432.4,13.05176]
[1728485785490,0.01599862,2432.5,2432.4,17.38260398]
[1728485785696,0.00799862,2432.5,2432.4,17.38260398]
[1728485785887,0.004,2432.5,2432.4,17.38260398]
[1728485786061,0.10513032,2433.0,2432.8,5.0]
[1728485786262,0.004,2433.0,2432.9,0.004]
[1728485786907,0.004,2433.0,2432.9,0.554]
[1728485787208,4.1989917,2433.2,2432.9,0.004]
[1728485787508,0.004,2433.0,2432.8,5.0]
[1728485787705,0.004,2433.0,2432.6,5.0]
[1728485787706,0.0931317,2433.0,2432.6,5.0]
[1728485788068,4.2072917,2433.0,2432.6,5.0]
[1728485788593,4.11433862,2432.9,2432.6,5.0]
[1728485788851,0.016,2432.8,2432.7,0.55]
[1728485789020,0.016,2432.8,2432.7,1.520081]
[1728485789021,0.02,2432.8,2432.7,1.520081]
[1728485789217,0.02,2432.8,2432.7,5.630731]
[1728485795051,0.016,2432.8,2432.7,5.630731]
[1728485795236,0.008,2432.8,2432.7,7.34803202]
[1728485795435,0.02399862,2433.1,2432.9,5.0]
[1728485795642,0.01599862,2433.1,2433.0,0.004]
[1728485797578,0.02399862,2433.1,2433.0,0.004]
[1728485801589,4.13397862,2433.1,2433.0,0.004]
[1728485801795,4.22311032,2433.1,2433.0,0.004]
[1728485802086,5.13947335,2433.1,2433.0,0.004]
[1728485802406,5.91607335,2433.1,2433.0,0.004]
[1728485804842,4.99971032,2433.1,2433.0,0.004]
[1728485806084,0.88973032,2433.1,2433.0,0.004]
[1728485806446,4.99971032,2433.1,2433.0,0.004]
[1728485806774,0.11313032,2433.1,2433.0,0.004]
[1728485808012,0.02399862,2433.1,2433.0,0.3946]
[1728485808186,0.01599862,2433.1,2433.0,5.84509]
[1728485808387,0.01599862,2433.1,2433.0,5.004]
[1728485808388,0.012,2433.1,2433.0,5.004]
[1728485808581,0.008,2433.1,2433.0,5.004]
[1728485809292,0.01999862,2433.1,2433.0,5.004]
[1728485809488,0.02399862,2433.1,2433.0,5.004]
[1728485809821,0.03199862,2433.1,2433.0,5.004]
[1728485810390,0.12113032,2433.1,2433.0,5.004]
[1728485811005,0.12113032,2433.1,2433.0,0.004]
[1728485811006,4.23111032,2433.1,2433.0,0.004]
[1728485811283,5.14311535,2433.1,2433.0,0.004]
[1728485811583,5.92221535,2433.1,2433.0,0.004]
[1728485819212,5.01021032,2433.1,2433.0,0.004]
[1728485819707,4.23111032,2433.1,2433.0,0.004]
[1728485819884,0.12113032,2433.1,2433.0,0.004]
[1728485820292,0.03199862,2433.1,2433.0,0.004]
[1728485820492,0.02399862,2433.1,2433.0,5.004]
[1728485820691,0.016,2433.1,2433.0,6.381476]
[1728485820924,0.004,2433.1,2433.0,6.381476]
[1728485821223,0.01599862,2433.1,2433.0,6.381476]
[1728485821428,0.02799862,2433.1,2433.0,6.381476]
[1728485821736,0.03199862,2433.1,2433.0,6.381476]
[1728485823715,4.14197862,2433.1,2433.0,6.381476]
[1728485824031,4.14197862,2433.1,2433.0,5.004]
[1728485824331,0.03199862,2433.1,2433.0,5.004]
[1728485824932,0.03199862,2433.1,2433.0,5.004]
[1728485825293,0.02399862,2433.1,2433.0,13.43917154]
[1728485825494,0.012,2433.1,2433.0,15.11639216]
[1728485825808,0.02399862,2433.3,2433.1,4.65997]